[Event "FWCT 2019"]
[Site "Kazan"]
[Date "2019.06.16"]
[Round "13.1"]
[White "Gunina, Valentina"]
[Black "Muzychuk, Anna"]
[Result "0-1"]
[ECO "C58"]
[WhiteElo "2506"]
[BlackElo "2539"]
[Annotator "ChessBase"]
[PlyCount "134"]
[EventDate "2019.05.11"]
[EventType "tourn"]
[EventCountry "RUS"]
[SourceTitle "playchess.com"]
[Source "ChessBase"]
[SourceQuality "1"]
[TimeControl "40/5400+30:1800+30"]

1. e4 {[%emt 0:00:00]} e5 {[%emt 0:00:00]} 2. Nf3 {[%emt 0:00:00]} Nc6 {[%emt 0:00:00]} 3. Bc4 {[%emt 0:00:00]} Nf6 {[%emt 0:00:00]} 4. Ng5 {[%emt 0:00:40]} d5 {[%emt 0:00:03]} 5. exd5 {[%emt 0:00:06]} Na5 {[%emt 0:00:04]} 6. Bb5+ {[%emt 0:00:05]} c6 {[%emt 0:00:14]} 7. dxc6 {[%emt 0:00:05]} bxc6 {[%emt 0:00:09]} 8. Bd3 {[%emt 0:00:07]} Nd5 {[%emt 0:00:34]} 9. h4 {[%emt 0:00:17]} h6 {[%emt 0:01:29]} 10. Qh5 {[%emt 0:02:19]} Qf6 {[%emt 0:00:57]} 11. Nh7 {[%emt 0:01:20]} Rxh7 {[%emt 0:00:50]} 12. Bxh7 {[%emt 0:00:06]} g6 {[%emt 0:01:08]} 13. Qf3 {[%emt 0:07:45]} Qxf3 {[%emt 0:07:24]} 14. gxf3 {[%emt 0:00:54]} Nf6 {[%emt 0:06:18]} 15. d3 {[%emt 0:06:35]} Nxh7 {[%emt 0:02:25]} 16. Bd2 {[%emt 0:00:11]} Nb7 {[%emt 0:00:11]} 17. Bc3 {[%emt 0:01:54]} Bd6 {[%emt 0:03:56]} 18. Nd2 {[%emt 0:01:48]} Be6 {[%emt 0:02:37]} 19. Ne4 {[%emt 0:04:00]} Bc7 {[%emt 0:04:51]} 20. O-O-O {[%emt 0:01:09]} O-O-O {[%emt 0:05:42]} 21. Rde1 {[%emt 0:03:14]} Bd5 {[%emt 0:04:58]} 22. Nd2 {[%emt 0:05:04]} f6 {[%emt 0:02:54]} 23. Rhg1 {[%emt 0:07:41]} Bf7 {[%emt 0:07:21]} 24. a4 {[%emt 0:12:29]} Nc5 {[%emt 0:04:07]} 25. f4 {[%emt 0:15:43]} exf4 {[%emt 0:05:35]} 26. Re7 {[%emt 0:00:50]} Rd7 {[%emt 0:00:40]} 27. Rxd7 {[%emt 0:02:49]} Nxd7 {[%emt 0:05:11]} 28. a5 {[%emt 0:02:44]} Nhf8 {[%emt 0:02:38]} 29. b4 {[%emt 0:04:45]} Ne6 {[%emt 0:03:31]} 30. Ne4 {[%emt 0:06:31]} f5 {[%emt 0:01:26]} 31. Nd2 {[%emt 0:00:26]} Be5 {[%emt 0:07:05]} 32. Kb2 {[%emt 0:01:23]} Nd4 {[%emt 0:02:35]} 33. Re1 {[%emt 0:00:34]} Bf6 {[%emt 0:00:14]} 34. Nc4 {[%emt 0:05:51]} Kc7 {[%emt 0:01:20]} 35. Nd2 {[%emt 0:05:12]} a6 {[%emt 0:03:01]} 36. Rh1 {[%emt 0:01:25]} Bd5 {[%emt 0:03:58]} 37. Re1 {[%emt 0:01:25]} g5 {[%emt 0:01:36]} 38. hxg5 {[%emt 0:00:01]} hxg5 {[%emt 0:00:07]} 39. Re8 {[%emt 0:01:16]} g4 {[%emt 0:04:28]} 40. Nf1 {[%emt 0:00:00]} Bg2 {[%emt 0:00:00]} 41. Nd2 {[%emt 0:03:01]} g3 {[%emt 0:10:07]} 42. fxg3 {[%emt 0:01:18]} fxg3 {[%emt 0:00:22]} 43. Rg8 {[%emt 0:05:15]} Bd5 {[%emt 0:02:56]} 44. Rxg3 {[%emt 0:03:03]} Ne2 {[%emt 0:00:07]} 45. Bxf6 {[%emt 0:00:04]} Nxg3 {[%emt 0:00:05]} 46. Bh4 {[%emt 0:02:01]} Ne2 {[%emt 0:01:14]} 47. c4 {[%emt 0:01:38]} Bg2 {[%emt 0:00:05]} 48. Nb3 {[%emt 0:00:34]} f4 {[%emt 0:10:23]} 49. Kc2 {[%emt 0:00:46]} Kd6 {[%emt 0:00:17]} 50. Kd2 {[%emt 0:01:10]} Ng1 {[%emt 0:00:38]} 51. Kc3 {[%emt 0:05:33]} Nf3 {[%emt 0:02:45]} 52. Bf2 {[%emt 0:01:44]} Nfe5 {[%emt 0:01:50]} 53. Bh4 {[%emt 0:03:56]} Bf1 {[%emt 0:02:22]} 54. b5 {[%emt 0:03:05]} cxb5 {[%emt 0:01:01]} 55. cxb5 {[%emt 0:00:02]} axb5 {[%emt 0:02:25]} 56. a6 {[%emt 0:00:13]} Bxd3 {[%emt 0:03:04]} 57. Nd4 {[%emt 0:02:39]} b4+ {[%emt 0:01:05]} 58. Kxb4 {[%emt 0:00:57]} Bxa6 {[%emt 0:00:01]} 59. Kc3 {[%emt 0:01:19]} Kd5 {[%emt 0:00:13]} 60. Nf5 {[%emt 0:01:59]} Nc5 {[%emt 0:00:28]} 61. Ne7+ {[%emt 0:00:47]} Ke6 {[%emt 0:00:45]} 62. Ng8 {[%emt 0:00:28]} Nf3 {[%emt 0:01:18]} 63. Bd8 {[%emt 0:00:32]} Ne4+ {[%emt 0:00:08]} 64. Kb4 {[%emt 0:00:21]} Ne5 {[%emt 0:00:21]} 65. Bh4 {[%emt 0:00:32]} Nf3 {[%emt 0:02:02]} 66. Bd8 {[%emt 0:00:16]} Nd4 {[%emt 0:00:17]} 67. Bh4 {[%emt 0:00:57]} Nf5 {[%emt 0:00:14]} 0-1

[Event "FWCT 2019"]
[Site "Kazan"]
[Date "2019.06.16"]
[Round "13.2"]
[White "Kosteniuk, Alexandra"]
[Black "Muzychuk, Mariya"]
[Result "1-0"]
[ECO "B29"]
[WhiteElo "2546"]
[BlackElo "2563"]
[Annotator "ChessBase"]
[PlyCount "83"]
[EventDate "2019.05.11"]
[EventType "tourn"]
[EventCountry "RUS"]
[SourceTitle "playchess.com"]
[Source "ChessBase"]
[SourceQuality "1"]
[TimeControl "40/5400+30:1800+30"]

1. e4 {[%emt 0:00:00]} c5 {[%emt 0:00:00]} 2. Nf3 {[%emt 0:00:00]} Nf6 {[%emt 0:00:00]} 3. e5 {[%emt 0:00:25]} Nd5 {[%emt 0:00:07]} 4. c3 {[%emt 0:00:11]} d6 {[%emt 0:03:02]} 5. Bc4 {[%emt 0:04:02]} e6 {[%emt 0:01:22]} 6. d4 {[%emt 0:00:27]} cxd4 {[%emt 0:00:17]} 7. cxd4 {[%emt 0:00:05]} Nc6 {[%emt 0:00:06]} 8. O-O {[%emt 0:00:21]} Be7 {[%emt 0:00:03]} 9. Qe2 {[%emt 0:00:20]} O-O {[%emt 0:00:18]} 10. Rd1 {[%emt 0:00:13]} Na5 {[%emt 0:08:23]} 11. Bd3 {[%emt 0:01:05]} Nb4 {[%emt 0:13:30]} 12. Nc3 {[%emt 0:00:32]} Nxd3 {[%emt 0:04:32]} 13. Rxd3 {[%emt 0:00:13]} d5 {[%emt 0:01:12]} 14. Ne1 {[%emt 0:04:38]} f5 {[%emt 0:04:09]} 15. exf6 {[%emt 0:08:03]} Bxf6 {[%emt 0:00:11]} 16. Bf4 {[%emt 0:00:50]} Bd7 {[%emt 0:02:21]} 17. Rad1 {[%emt 0:01:23]} Qe7 {[%emt 0:07:04]} 18. Re3 {[%emt 0:13:51]} Qf7 {[%emt 0:01:44]} 19. b3 {[%emt 0:01:30]} Nc6 {[%emt 0:03:15]} 20. Red3 {[%emt 0:11:13]} Ne7 {[%emt 0:05:33]} 21. Bd6 {[%emt 0:03:15]} Rfc8 {[%emt 0:02:00]} 22. Nf3 {[%emt 0:09:23]} Ng6 {[%emt 0:00:41]} 23. Re3 {[%emt 0:01:49]} Rc6 {[%emt 0:07:13]} 24. Bg3 {[%emt 0:09:12]} Rac8 {[%emt 0:00:31]} 25. Qe1 {[%emt 0:02:51]} a6 {[%emt 0:04:15]} 26. Na4 {[%emt 0:01:04]} b6 {[%emt 0:04:18]} 27. h4 {[%emt 0:04:53]} Ne7 {[%emt 0:02:04]} 28. Ne5 {[%emt 0:03:01]} Bxe5 {[%emt 0:00:04]} 29. Bxe5 {[%emt 0:00:04]} Nf5 {[%emt 0:00:13]} 30. Rh3 {[%emt 0:00:30]} Qe7 {[%emt 0:00:44]} 31. Qe2 {[%emt 0:03:05]} Qa3 {[%emt 0:12:51]} 32. Qxa6 {[%emt 0:11:26]} Qxa2 {[%emt 0:01:01]} 33. Qb7 {[%emt 0:01:22]} Qe2 {[%emt 0:00:24]} 34. Qxd7 {[%emt 0:02:47]} Qxd1+ {[%emt 0:05:25]} 35. Kh2 {[%emt 0:00:02]} Qc1 {[%emt 0:03:02]} 36. Rg3 {[%emt 0:00:46]} Qh6 {[%emt 0:00:24]} 37. Rg4 {[%emt 0:00:54]} Rc2 {[%emt 0:00:48]} 38. Nc5 {[%emt 0:00:31]} Ra8 {[%emt 0:04:43]} 39. Nxe6 {[%emt 0:00:17]} Rxf2 {[%emt 0:00:02]} 40. Qxd5 {[%emt 0:00:00]} Ra5 {[%emt 0:00:00]} 41. Qd8+ {[%emt 0:03:22]} Kf7 {[%emt 0:02:15]} 42. Ng5+ {[%emt 0:02:26]} 1-0

[Event "FWCT 2019"]
[Site "Kazan"]
[Date "2019.06.16"]
[Round "13.3"]
[White "Goryachkina, Aleksandra"]
[Black "Dzagnidze, Nana"]
[Result "1/2-1/2"]
[ECO "A62"]
[WhiteElo "2522"]
[BlackElo "2510"]
[Annotator "RC"]
[PlyCount "40"]
[EventDate "2019.05.11"]
[EventType "tourn"]
[EventCountry "RUS"]
[SourceTitle "playchess.com"]
[Source "ChessBase"]
[SourceQuality "1"]
[TimeControl "40/5400+30:1800+30"]

1. d4 {[%emt 0:00:00]} Nf6 {[%emt 0:00:00]} 2. c4 {[%emt 0:00:00]} e6 {[%emt 0:00:00]} 3. g3 {[%emt 0:00:08]} c5 {[%emt 0:00:16]} 4. d5 {[%emt 0:00:09]} exd5 {[%emt 0:00:05]} 5. cxd5 {[%emt 0:00:03]} g6 {[%emt 0:00:04]} 6. Nc3 {[%emt 0:00:58]} Bg7 {[%emt 0:00:11]} 7. Bg2 {[%emt 0:01:09]} d6 {[%emt 0:00:43]} 8. Nf3 {[%emt 0:00:10]} O-O {[%emt 0:00:06]} 9. O-O {[%emt 0:00:06]} Re8 {[%emt 0:00:09]} 10. Bf4 {[%emt 0:01:38]} Bf5 {[%emt 0:00:06]} 11. Nh4 {[%emt 0:05:01]} Bg4 {[%emt 0:00:19]} 12. h3 {[%emt 0:01:22]} Nh5 {[%emt 0:00:14]} 13. hxg4 {[%emt 0:02:04]} Nxf4 {[%emt 0:00:06]} 14. gxf4 {[%emt 0:00:16]} Bxc3 {[%emt 0:04:00]} 15. bxc3 {[%emt 0:02:39]} Qxh4 {[%emt 0:00:06]} 16. e3 {[%emt 0:01:25]} Nd7 {[%emt 0:07:10]} 17. Bf3 {[%emt 0:02:32]} Qh3 {[%emt 0:02:39]} 18. Bg2 {[%emt 0:01:39]} Qh4 {[%emt 0:00:26]} 19. Bf3 {[%emt 0:00:17]} Qh3 {[%emt 0:00:23]} 20. Bg2 {[%emt 0:00:11]} Qh4 {[%emt 0:00:25]} 1/2-1/2

[Event "FWCT 2019"]
[Site "Kazan"]
[Date "2019.06.16"]
[Round "13.4"]
[White "Lagno, Kateryna"]
[Black "Tan, Zhongyi"]
[Result "1/2-1/2"]
[ECO "C67"]
[WhiteElo "2554"]
[BlackElo "2513"]
[Annotator "ChessBase"]
[PlyCount "98"]
[EventDate "2019.05.11"]
[EventType "tourn"]
[EventCountry "RUS"]
[SourceTitle "playchess.com"]
[Source "ChessBase"]
[SourceQuality "1"]
[TimeControl "40/5400+30:1800+30"]

1. e4 {[%emt 0:00:00]} e5 {[%emt 0:00:00]} 2. Nf3 {[%emt 0:00:00]} Nc6 {[%emt 0:00:00]} 3. Bb5 {[%emt 0:00:00]} Nf6 {[%emt 0:00:00]} 4. O-O {[%emt 0:00:16]} Nxe4 {[%emt 0:00:00]} 5. Re1 {[%emt 0:00:11]} Nd6 {[%emt 0:00:02]} 6. Nxe5 {[%emt 0:00:09]} Be7 {[%emt 0:00:04]} 7. Bf1 {[%emt 0:00:10]} Nxe5 {[%emt 0:00:04]} 8. Rxe5 {[%emt 0:00:05]} O-O {[%emt 0:00:06]} 9. d4 {[%emt 0:00:15]} Bf6 {[%emt 0:00:04]} 10. Re1 {[%emt 0:00:09]} Re8 {[%emt 0:00:06]} 11. c3 {[%emt 0:00:11]} Rxe1 {[%emt 0:02:12]} 12. Qxe1 {[%emt 0:00:12]} Ne8 {[%emt 0:02:05]} 13. d5 {[%emt 0:00:21]} d6 {[%emt 0:06:49]} 14. Na3 {[%emt 0:00:34]} c6 {[%emt 0:03:20]} 15. Qd1 {[%emt 0:13:40]} Nc7 {[%emt 0:01:11]} 16. c4 {[%emt 0:19:42]} Bf5 {[%emt 0:03:00]} 17. dxc6 {[%emt 0:13:16]} bxc6 {[%emt 0:00:50]} 18. Nc2 {[%emt 0:00:02]} Ne6 {[%emt 0:02:10]} 19. Ne3 {[%emt 0:05:06]} Bg6 {[%emt 0:00:21]} 20. Bd3 {[%emt 0:01:29]} Rb8 {[%emt 0:00:37]} 21. Bxg6 {[%emt 0:03:42]} hxg6 {[%emt 0:00:41]} 22. Rb1 {[%emt 0:00:03]} Be5 {[%emt 0:06:13]} 23. b4 {[%emt 0:04:59]} Qh4 {[%emt 0:01:09]} 24. Ng4 {[%emt 0:08:08]} Bd4 {[%emt 0:03:10]} 25. h3 {[%emt 0:17:57]} f5 {[%emt 0:04:53]} 26. Qe2 {[%emt 0:00:07]} Re8 {[%emt 0:03:37]} 27. Nh2 {[%emt 0:00:06]} Nf8 {[%emt 0:10:04]} 28. Qf1 {[%emt 0:04:55]} Qe4 {[%emt 0:00:39]} 29. Rb3 {[%emt 0:03:47]} Qc2 {[%emt 0:00:28]} 30. Be3 {[%emt 0:02:20]} Qxa2 {[%emt 0:02:02]} 31. Qd1 {[%emt 0:00:21]} Bxe3 {[%emt 0:04:06]} 32. Rxe3 {[%emt 0:00:04]} Rxe3 {[%emt 0:00:12]} 33. fxe3 {[%emt 0:00:02]} Qxc4 {[%emt 0:02:43]} 34. Qxd6 {[%emt 0:00:04]} Qd5 {[%emt 0:00:44]} 35. Qb8 {[%emt 0:00:34]} Qb3 {[%emt 0:04:24]} 36. Qxa7 {[%emt 0:00:29]} Qxb4 {[%emt 0:00:05]} 37. Qa2+ {[%emt 0:01:08]} Kh8 {[%emt 0:00:05]} 38. Qf7 {[%emt 0:01:16]} Qb1+ {[%emt 0:02:40]} 39. Nf1 {[%emt 0:00:26]} Qb8 {[%emt 0:00:15]} 40. Nd2 {[%emt 0:00:00]} Qd8 {[%emt 0:00:00]} 41. Nf3 {[%emt 0:03:26]} Qf6 {[%emt 0:11:01]} 42. Qc7 {[%emt 0:00:59]} Qe6 {[%emt 0:02:17]} 43. Ne5 {[%emt 0:06:53]} Kh7 {[%emt 0:00:30]} 44. Kh2 {[%emt 0:03:59]} g5 {[%emt 0:01:44]} 45. Nxc6 {[%emt 0:01:16]} Qxe3 {[%emt 0:00:16]} 46. Qe5 {[%emt 0:03:55]} Qd3 {[%emt 0:01:20]} 47. Ne7 {[%emt 0:01:03]} Ng6 {[%emt 0:00:26]} 48. Nxg6 {[%emt 0:00:12]} Kxg6 {[%emt 0:00:11]} 49. Qe8+ {[%emt 0:00:05]} Kh6 {[%emt 0:01:34]} 1/2-1/2

[Event "FWCT 2019"]
[Site "Kazan"]
[Date "2019.06.17"]
[Round "14.2"]
[White "Muzychuk, Mariya"]
[Black "Goryachkina, Aleksandra"]
[Result "1-0"]
[ECO "B12"]
[WhiteElo "2563"]
[BlackElo "2522"]
[Annotator "ChessBase"]
[PlyCount "77"]
[EventDate "2019.05.11"]
[EventType "tourn"]
[EventCountry "RUS"]
[SourceTitle "playchess.com"]
[Source "ChessBase"]
[SourceQuality "1"]
[TimeControl "40/5400+30:1800+30"]

1. e4 {[%emt 0:00:00]} c6 {[%emt 0:00:00]} 2. d4 {[%emt 0:00:00]} d5 {[%emt 0:00:00]} 3. e5 {[%emt 0:00:00]} Bf5 {[%emt 0:00:00]} 4. Nf3 {[%emt 0:00:10]} e6 {[%emt 0:00:06]} 5. Be2 {[%emt 0:00:16]} c5 {[%emt 0:00:13]} 6. Be3 {[%emt 0:01:06]} Qb6 {[%emt 0:00:27]} 7. Nc3 {[%emt 0:00:48]} Nc6 {[%emt 0:00:16]} 8. O-O {[%emt 0:00:28]} Qxb2 {[%emt 0:03:43]} 9. Qe1 {[%emt 0:00:18]} cxd4 {[%emt 0:00:32]} 10. Bxd4 {[%emt 0:00:08]} Nxd4 {[%emt 0:01:42]} 11. Nxd4 {[%emt 0:00:42]} Bb4 {[%emt 0:00:26]} 12. Rb1 {[%emt 0:00:12]} Bxc3 {[%emt 0:06:07]} 13. Rxb2 {[%emt 0:00:33]} Bxe1 {[%emt 0:00:09]} 14. Rxe1 {[%emt 0:00:02]} b6 {[%emt 0:00:26]} 15. h4 {[%emt 0:00:13]} Be4 {[%emt 0:07:16]} 16. Bb5+ {[%emt 0:31:02]} Kf8 {[%emt 0:00:54]} 17. f3 {[%emt 0:01:30]} Bg6 {[%emt 0:00:17]} 18. Re3 {[%emt 0:00:05]} Ne7 {[%emt 0:07:20]} 19. Rc3 {[%emt 0:06:32]} h5 {[%emt 0:07:18]} 20. Rc7 {[%emt 0:02:04]} a6 {[%emt 0:07:58]} 21. Bd7 {[%emt 0:04:19]} b5 {[%emt 0:01:02]} 22. a4 {[%emt 0:01:34]} bxa4 {[%emt 0:07:43]} 23. Bxa4 {[%emt 0:01:31]} Nf5 {[%emt 0:04:13]} 24. Ra7 {[%emt 0:02:01]} Rd8 {[%emt 0:05:52]} 25. Nc6 {[%emt 0:01:48]} Re8 {[%emt 0:06:18]} 26. Ne7 {[%emt 0:01:06]} Rd8 {[%emt 0:06:48]} 27. Nxg6+ {[%emt 0:00:40]} fxg6 {[%emt 0:00:06]} 28. Bd7 {[%emt 0:00:23]} Kg8 {[%emt 0:03:51]} 29. Bxe6+ {[%emt 0:00:34]} Kh7 {[%emt 0:00:01]} 30. Rbb7 {[%emt 0:30:36]} Nd4 {[%emt 0:03:57]} 31. Bd7 {[%emt 0:03:06]} Rb8 {[%emt 0:06:41]} 32. e6 {[%emt 0:01:38]} Nf5 {[%emt 0:00:31]} 33. Ba4 {[%emt 0:02:37]} Rbc8 {[%emt 0:08:21]} 34. e7 {[%emt 0:00:21]} Nd6 {[%emt 0:00:34]} 35. Rb6 {[%emt 0:00:53]} Ne8 {[%emt 0:04:01]} 36. Rbxa6 {[%emt 0:00:37]} Kg8 {[%emt 0:01:37]} 37. Ra8 {[%emt 0:03:21]} Rxa8 {[%emt 0:00:19]} 38. Rxa8 {[%emt 0:00:03]} Kf7 {[%emt 0:00:08]} 39. Kf2 {[%emt 0:00:05]} 1-0

[Event "FWCT 2019"]
[Site "Kazan"]
[Date "2019.06.17"]
[Round "14.3"]
[White "Dzagnidze, Nana"]
[Black "Lagno, Kateryna"]
[Result "1/2-1/2"]
[ECO "A05"]
[WhiteElo "2510"]
[BlackElo "2554"]
[Annotator "ChessBase"]
[PlyCount "85"]
[EventDate "2019.05.11"]
[EventType "tourn"]
[EventCountry "RUS"]
[SourceTitle "playchess.com"]
[Source "ChessBase"]
[SourceQuality "1"]
[TimeControl "40/5400+30:1800+30"]

1. Nf3 {[%emt 0:00:00]} Nf6 {[%emt 0:00:00]} 2. b3 {[%emt 0:00:00]} g6 {[%emt 0:00:00]} 3. Bb2 {[%emt 0:00:00]} Bg7 {[%emt 0:00:06]} 4. g3 {[%emt 0:00:14]} d6 {[%emt 0:00:45]} 5. d4 {[%emt 0:00:23]} c5 {[%emt 0:00:18]} 6. c4 {[%emt 0:05:22]} Ne4 {[%emt 0:00:21]} 7. Nbd2 {[%emt 0:07:55]} Qa5 {[%emt 0:00:41]} 8. Qc1 {[%emt 0:05:51]} Nxd2 {[%emt 0:00:31]} 9. Qxd2 {[%emt 0:00:05]} Qxd2+ {[%emt 0:00:05]} 10. Kxd2 {[%emt 0:00:03]} cxd4 {[%emt 0:00:24]} 11. Bxd4 {[%emt 0:00:26]} Bxd4 {[%emt 0:00:08]} 12. Nxd4 {[%emt 0:00:04]} Nc6 {[%emt 0:00:06]} 13. Nb5 {[%emt 0:00:40]} O-O {[%emt 0:01:40]} 14. Bg2 {[%emt 0:00:08]} Bd7 {[%emt 0:01:43]} 15. Rhd1 {[%emt 0:02:21]} Rac8 {[%emt 0:04:31]} 16. Rac1 {[%emt 0:05:51]} Rfd8 {[%emt 0:04:18]} 17. Nc3 {[%emt 0:26:28]} Kf8 {[%emt 0:03:27]} 18. Kc2 {[%emt 0:00:46]} h5 {[%emt 0:12:06]} 19. h4 {[%emt 0:02:59]} Rb8 {[%emt 0:20:11]} 20. Kb2 {[%emt 0:00:55]} Ne5 {[%emt 0:00:27]} 21. Rd2 {[%emt 0:02:05]} Bc6 {[%emt 0:01:42]} 22. e4 {[%emt 0:01:04]} Rdc8 {[%emt 0:06:18]} 23. f4 {[%emt 0:13:47]} Ng4 {[%emt 0:00:51]} 24. Bh3 {[%emt 0:01:15]} Bd7 {[%emt 0:03:38]} 25. Re1 {[%emt 0:06:58]} Rd8 {[%emt 0:02:50]} 26. Bxg4 {[%emt 0:03:43]} Bxg4 {[%emt 0:00:13]} 27. Rd5 {[%emt 0:00:09]} Bd7 {[%emt 0:02:44]} 28. Red1 {[%emt 0:00:43]} Bc6 {[%emt 0:01:15]} 29. R5d4 {[%emt 0:00:25]} Rdc8 {[%emt 0:00:44]} 30. a4 {[%emt 0:05:16]} b6 {[%emt 0:12:09]} 31. R1d2 {[%emt 0:00:22]} f6 {[%emt 0:00:58]} 32. Rf2 {[%emt 0:01:50]} Kf7 {[%emt 0:00:36]} 33. Nd5 {[%emt 0:01:18]} Bxd5 {[%emt 0:01:17]} 34. Rxd5 {[%emt 0:00:31]} Rc5 {[%emt 0:00:35]} 35. Kc3 {[%emt 0:00:23]} Rbc8 {[%emt 0:01:50]} 36. Kd3 {[%emt 0:03:20]} a6 {[%emt 0:05:28]} 37. Rc2 {[%emt 0:00:20]} f5 {[%emt 0:02:48]} 38. Re2 {[%emt 0:02:08]} fxe4+ {[%emt 0:01:48]} 39. Kxe4 {[%emt 0:00:08]} Rxd5 {[%emt 0:01:32]} 40. Kxd5 {[%emt 0:00:00]} Rc5+ {[%emt 0:00:00]} 41. Ke4 {[%emt 0:00:27]} e6 {[%emt 0:06:19]} 42. Rd2 {[%emt 0:03:36]} Ke7 {[%emt 0:00:05]} 43. Rd1 {[%emt 0:00:15]} 1/2-1/2

[Event "FWCT 2019"]
[Site "Kazan"]
[Date "2019.06.17"]
[Round "14.4"]
[White "Tan, Zhongyi"]
[Black "Gunina, Valentina"]
[Result "1-0"]
[ECO "C54"]
[WhiteElo "2513"]
[BlackElo "2506"]
[Annotator "ChessBase"]
[PlyCount "147"]
[EventDate "2019.05.11"]
[EventType "tourn"]
[EventCountry "RUS"]
[SourceTitle "playchess.com"]
[Source "ChessBase"]
[SourceQuality "1"]
[TimeControl "40/5400+30:1800+30"]

1. e4 {[%emt 0:00:00]} e5 {[%emt 0:00:00]} 2. Nf3 {[%emt 0:00:00]} Nc6 {[%emt 0:00:00]} 3. Bc4 {[%emt 0:00:00]} Bc5 {[%emt 0:00:29]} 4. c3 {[%emt 0:00:00]} Nf6 {[%emt 0:01:11]} 5. d4 {[%emt 0:00:00]} exd4 {[%emt 0:01:40]} 6. e5 {[%emt 0:00:05]} d5 {[%emt 0:07:02]} 7. Bb5 {[%emt 0:00:12]} Ne4 {[%emt 0:01:05]} 8. cxd4 {[%emt 0:00:04]} Bb6 {[%emt 0:00:21]} 9. Nc3 {[%emt 0:00:24]} O-O {[%emt 0:00:06]} 10. Be3 {[%emt 0:01:24]} f5 {[%emt 0:01:02]} 11. exf6 {[%emt 0:07:42]} Nxc3 {[%emt 0:05:21]} 12. bxc3 {[%emt 0:00:07]} Qxf6 {[%emt 0:00:03]} 13. Qb3 {[%emt 0:03:05]} Ne7 {[%emt 0:05:42]} 14. O-O {[%emt 0:01:43]} c6 {[%emt 0:02:19]} 15. Bd3 {[%emt 0:02:18]} Nf5 {[%emt 0:10:16]} 16. Bg5 {[%emt 0:01:08]} Qf7 {[%emt 0:05:16]} 17. Rae1 {[%emt 0:09:35]} Qh5 {[%emt 0:02:16]} 18. Bc1 {[%emt 0:04:06]} Nh4 {[%emt 0:18:19]} 19. Nxh4 {[%emt 0:07:56]} Qxh4 {[%emt 0:00:25]} 20. g3 {[%emt 0:29:16]} Qh3 {[%emt 0:02:57]} 21. Be4 {[%emt 0:06:08]} Qh5 {[%emt 0:03:25]} 22. Bg2 {[%emt 0:02:34]} Bf5 {[%emt 0:00:46]} 23. Re5 {[%emt 0:04:58]} Bc7 {[%emt 0:08:51]} 24. Re7 {[%emt 0:02:59]} Bd6 {[%emt 0:00:49]} 25. Re3 {[%emt 0:00:22]} Qf7 {[%emt 0:04:16]} 26. Ba3 {[%emt 0:00:51]} Bxa3 {[%emt 0:01:51]} 27. Qxa3 {[%emt 0:00:05]} Rae8 {[%emt 0:00:46]} 28. Rfe1 {[%emt 0:07:15]} Bh3 {[%emt 0:05:48]} 29. Qb2 {[%emt 0:00:26]} Bxg2 {[%emt 0:06:06]} 30. Kxg2 {[%emt 0:00:04]} b6 {[%emt 0:03:54]} 31. Qe2 {[%emt 0:00:21]} Re4 {[%emt 0:01:38]} 32. f3 {[%emt 0:00:12]} Rxe3 {[%emt 0:00:02]} 33. Qxe3 {[%emt 0:00:05]} c5 {[%emt 0:00:01]} 34. f4 {[%emt 0:01:43]} Rc8 {[%emt 0:00:47]} 35. Re2 {[%emt 0:00:08]} cxd4 {[%emt 0:00:49]} 36. cxd4 {[%emt 0:00:17]} h6 {[%emt 0:00:45]} 37. Qe5 {[%emt 0:00:13]} Kh7 {[%emt 0:00:42]} 38. f5 {[%emt 0:01:21]} Qh5 {[%emt 0:01:06]} 39. Qe6 {[%emt 0:04:37]} Rc6 {[%emt 0:00:13]} 40. Qe5 {[%emt 0:00:00]} Qg4 {[%emt 0:00:00]} 41. h3 {[%emt 0:02:51]} Qh5 {[%emt 0:05:47]} 42. g4 {[%emt 0:03:20]} Qh4 {[%emt 0:02:02]} 43. Qe8 {[%emt 0:08:26]} Rf6 {[%emt 0:03:28]} 44. Qc8 {[%emt 0:04:34]} Qg5 {[%emt 0:04:30]} 45. Kg3 {[%emt 0:05:04]} Rf7 {[%emt 0:07:25]} 46. h4 {[%emt 0:01:32]} Rf8 {[%emt 0:02:45]} 47. hxg5 {[%emt 0:06:13]} Rxc8 {[%emt 0:00:03]} 48. g6+ {[%emt 0:00:04]} Kg8 {[%emt 0:00:52]} 49. Re7 {[%emt 0:00:06]} Kf8 {[%emt 0:04:31]} 50. Rf7+ {[%emt 0:00:05]} Kg8 {[%emt 0:00:02]} 51. Rxa7 {[%emt 0:00:21]} Re8 {[%emt 0:00:25]} 52. Kf3 {[%emt 0:01:37]} Kf8 {[%emt 0:00:10]} 53. Rf7+ {[%emt 0:00:09]} Kg8 {[%emt 0:00:01]} 54. Rb7 {[%emt 0:01:31]} Kf8 {[%emt 0:00:13]} 55. Rxb6 {[%emt 0:00:14]} Re4 {[%emt 0:03:58]} 56. Rb4 {[%emt 0:01:21]} Ke7 {[%emt 0:00:55]} 57. a4 {[%emt 0:00:06]} Kf6 {[%emt 0:01:13]} 58. a5 {[%emt 0:00:10]} Re7 {[%emt 0:01:22]} 59. a6 {[%emt 0:00:24]} h5 {[%emt 0:00:32]} 60. gxh5 {[%emt 0:01:24]} Kxf5 {[%emt 0:00:19]} 61. Rb5 {[%emt 0:00:25]} Kg5 {[%emt 0:00:36]} 62. Rxd5+ {[%emt 0:02:34]} Kh6 {[%emt 0:00:01]} 63. Rd6 {[%emt 0:00:09]} Kxh5 {[%emt 0:00:22]} 64. Kf4 {[%emt 0:00:06]} Re1 {[%emt 0:00:13]} 65. Rb6 {[%emt 0:01:02]} Kh6 {[%emt 0:01:05]} 66. d5 {[%emt 0:00:15]} Ra1 {[%emt 0:01:13]} 67. d6 {[%emt 0:00:38]} Rf1+ {[%emt 0:00:07]} 68. Ke3 {[%emt 0:00:20]} Re1+ {[%emt 0:00:37]} 69. Kf2 {[%emt 0:00:17]} Rd1 {[%emt 0:00:43]} 70. a7 {[%emt 0:00:26]} Ra1 {[%emt 0:00:14]} 71. d7 {[%emt 0:00:42]} Ra2+ {[%emt 0:00:04]} 72. Ke1 {[%emt 0:00:27]} Ra1+ {[%emt 0:00:09]} 73. Kd2 {[%emt 0:00:09]} Ra5 {[%emt 0:00:20]} 74. Rb7 {[%emt 0:00:16]} 1-0